bitfinex-derivatives/quotes_BNBF0:USTF0_20250609
["timestamp","ask_amount","ask_price","bid_price","bid_amount"]
[1749498961100,1.09002341,659.61,658.86,0.30355462]
[1749498961404,1.09002341,659.6,658.86,0.30355462]
[1749498961700,1.09002341,659.59,658.86,0.30355462]
[1749498961898,1.09002341,659.58,658.86,0.30355462]
[1749498962102,1.09002341,659.57,658.86,0.30355462]
[1749498962301,1.09002341,659.56,658.86,0.30355462]
[1749498962502,1.09002341,659.55,658.86,0.30355462]
[1749498962705,2.80898505,659.75,658.86,0.30355462]
[1749498962907,2.17402887,659.74,658.86,0.30355462]
[1749498963101,1.62470888,659.73,658.86,0.30355462]
[1749498963305,1.09002341,659.72,658.86,0.30355462]
[1749498963600,1.09002341,659.71,658.86,0.30355462]
[1749498963803,1.09002341,659.7,658.86,0.30355462]
[1749498964105,1.09002341,659.69,658.86,0.30355462]
[1749498964303,1.09002341,659.68,658.86,0.30355462]
[1749498964505,1.09002341,659.67,658.86,0.30355462]
[1749498964701,1.09002341,659.66,658.86,0.30355462]
[1749498964906,1.09002341,659.65,658.86,0.30355462]
[1749498965106,1.09002341,659.64,658.86,0.30355462]
[1749498965305,1.09002341,659.63,658.86,0.30355462]
[1749498965505,1.09002341,659.62,658.86,0.30355462]
[1749498965708,1.09002341,659.61,658.86,0.30355462]
[1749498965908,1.09002341,659.6,658.86,0.30355462]
[1749498966209,1.09002341,659.59,658.86,0.30355462]
[1749498966509,1.09002341,659.58,658.86,0.30355462]
[1749498966708,1.09002341,659.57,658.86,0.30355462]
[1749498967004,1.09002341,659.56,658.86,0.30355462]
[1749498967305,1.09002341,659.55,658.86,0.30355462]
[1749498967505,1.09002341,659.54,658.86,0.30355462]
[1749498967707,2.81067069,659.73,658.86,0.30355462]
[1749498968005,3.89540822,659.72,658.86,0.30355462]
[1749498968206,1.09002341,659.71,658.86,0.30355462]
[1749498968411,1.09002341,659.7,658.86,0.30355462]
[1749498968709,1.09002341,659.69,658.86,0.30355462]
[1749498969010,1.09002341,659.68,658.86,0.30355462]
[1749498969305,1.09002341,659.67,658.86,0.30355462]
[1749498969509,1.09002341,659.66,658.86,0.30355462]
[1749498969706,1.09002341,659.65,658.86,0.30355462]
[1749498969911,1.09002341,659.64,658.86,0.30355462]
[1749498970205,1.09002341,659.63,658.86,0.30355462]
[1749498970405,1.09002341,659.62,658.86,0.30355462]
[1749498970706,1.09002341,659.61,658.86,0.30355462]
[1749498970909,1.09002341,659.6,658.86,0.30355462]
[1749498971205,1.09002341,659.59,658.86,0.30355462]
[1749498971405,1.09002341,659.58,658.86,0.30355462]
[1749498971706,1.09002341,659.57,658.86,0.30355462]
[1749498971906,1.09002341,659.56,658.86,0.30355462]
[1749498972105,1.09002341,659.55,658.86,0.30355462]
[1749498972307,2.27558358,659.66,658.86,0.30355462]
[1749498972508,3.36026165,659.65,658.86,0.30355462]
[1749498972706,2.27557927,659.64,658.86,0.30355462]
[1749498972906,2.26743451,659.96,658.86,0.30355462]
[1749498972907,1.09002341,659.63,658.86,0.30355462]
[1749498973105,1.09002341,659.62,658.86,0.30355462]
[1749498973309,1.09002341,659.61,658.86,0.30355462]
[1749498973512,1.09002341,659.6,658.86,0.30355462]
[1749498973707,1.09002341,659.59,658.86,0.30355462]
[1749498973911,1.09002341,659.58,658.86,0.30355462]
[1749498974107,1.09002341,659.57,658.86,0.30355462]
[1749498974311,1.09002341,659.56,658.86,0.30355462]
[1749498974511,1.09002341,659.55,658.86,0.30355462]
[1749498974712,1.09002341,659.54,658.86,0.30355462]
[1749498974911,1.09002341,659.53,658.86,0.30355462]
[1749498975209,1.09002341,659.52,658.86,0.30355462]
[1749498975406,2.71000788,659.68,658.86,0.30355462]
[1749498975612,2.27554619,659.67,658.86,0.30355462]
[1749498975806,0.26395831,659.55,658.86,0.30355462]
[1749498976111,1.09002341,659.54,658.86,0.30355462]
[1749498976311,1.09002341,659.53,658.86,0.30355462]
[1749498976507,1.09002341,659.52,658.86,0.30355462]
[1749498976709,1.09002341,659.51,658.86,0.30355462]
[1749498976909,1.09002341,659.5,658.86,0.30355462]
[1749498977107,0.26395831,659.55,658.86,0.30355462]
[1749498977108,1.09002341,659.54,658.86,0.30355462]
[1749498977312,1.09002341,659.53,658.86,0.30355462]
[1749498977513,1.09002341,659.52,658.86,0.30355462]
[1749498977708,1.09002341,659.51,658.86,0.30355462]
[1749498977912,1.09002341,659.5,658.86,0.30355462]
[1749498978113,1.09002341,659.54,658.86,0.30355462]
[1749498978308,1.09002341,659.53,658.86,0.30355462]
[1749498978508,1.09002341,659.52,658.86,0.30355462]
[1749498978809,1.09002341,659.51,658.86,0.30355462]
[1749498979013,1.09002341,659.5,658.86,0.30355462]
[1749498979215,1.09002341,659.54,658.86,0.30355462]
[1749498979408,1.09002341,659.53,658.86,0.30355462]
[1749498979613,1.09002341,659.52,658.86,0.30355462]
[1749498979811,1.09002341,659.51,658.86,0.30355462]
[1749498980012,1.09002341,659.5,658.86,0.30355462]
[1749498980212,1.09002341,659.54,658.86,0.30355462]
[1749498980410,1.09002341,659.53,658.86,0.30355462]
[1749498980610,1.09002341,659.52,658.86,0.30355462]
[1749498980808,1.09002341,659.51,658.86,0.30355462]
[1749498981011,1.09002341,659.5,658.86,0.30355462]
[1749498981209,0.26395831,659.55,658.86,0.30355462]
[1749498981514,1.09212417,659.54,658.86,0.30355462]
[1749498981714,1.09212417,659.53,658.86,0.30355462]
[1749498981910,1.09212417,659.52,658.86,0.30355462]
[1749498982211,1.09212417,659.51,658.86,0.30355462]
[1749498982415,1.09212417,659.5,658.86,0.30355462]
[1749498982709,1.09212417,659.49,658.86,0.30355462]
[1749498982916,0.26395831,659.55,658.86,0.30355462]
[1749498983111,1.09223368,659.54,658.86,0.30355462]
[1749498983415,1.09223368,659.53,658.86,0.30355462]
[1749498983715,1.09223368,659.52,658.86,0.30355462]
[1749498984014,1.09223368,659.51,658.86,0.30355462]
[1749498984310,1.09223368,659.5,658.86,0.30355462]
[1749498984614,1.09223368,659.49,658.86,0.30355462]
[1749498984814,0.26395831,659.55,658.86,0.30355462]
[1749498985013,1.09223709,659.54,658.86,0.30355462]
[1749498985214,1.09223709,659.53,658.86,0.30355462]
[1749498985411,1.09223709,659.52,658.86,0.30355462]
[1749498985710,1.09223709,659.51,658.86,0.30355462]
[1749498986014,1.09223709,659.5,658.86,0.30355462]
[1749498986212,1.09223709,659.49,658.86,0.30355462]
[1749498986417,0.26395831,659.55,658.86,0.30355462]
[1749498986713,1.09275941,659.54,658.86,0.30355462]
[1749498987017,1.09275941,659.53,658.86,0.30355462]
[1749498987315,1.09275941,659.52,658.86,0.30355462]
[1749498987516,1.09275941,659.51,658.86,0.30355462]
[1749498987712,1.09275941,659.5,658.86,0.30355462]
[1749498987912,1.09275941,659.49,658.86,0.30355462]
[1749498988111,0.26395831,659.55,658.86,0.30355462]
[1749498988416,1.0922728,659.54,658.86,0.30355462]
[1749498988613,1.0922728,659.53,658.86,0.30355462]
[1749498988912,1.0922728,659.52,658.86,0.30355462]
[1749498989117,0.26395831,659.55,658.86,0.30355462]
[1749498989118,1.0922728,659.51,658.86,0.30355462]
[1749498989314,1.0922728,659.5,658.86,0.30355462]
[1749498989513,1.0922728,659.49,658.86,0.30355462]
[1749498989814,1.0922728,659.48,658.86,0.30355462]
[1749498990012,1.0922728,659.47,658.86,0.30355462]
[1749498990214,1.0922728,659.46,658.86,0.30355462]
[1749498990414,1.0922728,659.45,658.86,0.30355462]
[1749498990616,1.0922728,659.54,658.86,0.30355462]
[1749498990817,1.0922728,659.53,658.86,0.30355462]
[1749498991018,1.0922728,659.52,658.86,0.30355462]
[1749498991213,1.0922728,659.51,658.86,0.30355462]
[1749498991419,1.0922728,659.5,658.86,0.30355462]
[1749498991615,1.0922728,659.49,658.86,0.30355462]
[1749498991815,1.0922728,659.48,658.86,0.30355462]
[1749498992016,1.0922728,659.47,658.86,0.30355462]
[1749498992219,1.0922728,659.46,658.86,0.30355462]
[1749498992416,1.0922728,659.54,658.86,0.30355462]
[1749498992617,1.0922728,659.53,658.86,0.30355462]
[1749498992917,1.0922728,659.52,658.86,0.30355462]
[1749498993115,1.0922728,659.51,658.86,0.30355462]
[1749498993319,1.0922728,659.5,658.86,0.30355462]
[1749498993515,1.0922728,659.49,658.86,0.30355462]
[1749498993715,1.0922728,659.48,658.86,0.30355462]
[1749498993917,1.0922728,659.47,658.86,0.30355462]
[1749498994120,1.0922728,659.54,658.86,0.30355462]
[1749498994319,1.0922728,659.53,658.86,0.30355462]
[1749498994522,1.0922728,659.52,658.86,0.30355462]
[1749498994718,1.0922728,659.51,658.86,0.30355462]
[1749498994920,1.0922728,659.5,658.86,0.30355462]
[1749498995119,1.0922728,659.49,658.86,0.30355462]
[1749498995318,1.0922728,659.54,658.86,0.30355462]
[1749498995518,1.0922728,659.53,658.86,0.30355462]
[1749498995718,1.0922728,659.52,658.86,0.30355462]
[1749498995922,1.0922728,659.51,658.86,0.30355462]
[1749498996123,1.0922728,659.5,658.86,0.30355462]
[1749498996419,1.0922728,659.49,658.86,0.30355462]
[1749498996625,1.0922728,659.54,658.86,0.30355462]
[1749498996926,1.0922728,659.53,658.86,0.30355462]
[1749498997124,1.0922728,659.52,658.86,0.30355462]
[1749498997320,1.0922728,659.51,658.86,0.30355462]
[1749498997520,1.0922728,659.5,658.86,0.30355462]
[1749498997720,0.26395831,659.55,658.86,0.30355462]
[1749498997721,1.0922728,659.54,658.86,0.30355462]
[1749498998025,1.0922728,659.53,658.86,0.30355462]
[1749498998321,1.0922728,659.52,658.86,0.30355462]
[1749498998519,1.0922728,659.51,658.86,0.30355462]
[1749498998722,1.0922728,659.5,658.86,0.30355462]
[1749498998921,1.0922728,659.54,658.86,0.30355462]
[1749498999119,1.0922728,659.53,658.86,0.30355462]
[1749498999322,1.0922728,659.52,658.86,0.30355462]
[1749498999521,1.0922728,659.54,658.86,0.30355462]
[1749498999724,1.0922728,659.53,658.86,0.30355462]
[1749498999925,1.0922728,659.52,658.86,0.30355462]
[1749499000121,0.26395831,659.55,658.86,0.30355462]
[1749499000122,1.0922728,659.54,658.86,0.30355462]
[1749499000422,1.0922728,659.53,658.86,0.30355462]
[1749499000622,1.0922728,659.52,658.86,0.30355462]
[1749499000822,1.0922728,659.54,658.86,0.30355462]
[1749499001125,1.0922728,659.53,658.86,0.30355462]
[1749499001322,1.0922728,659.54,658.86,0.30355462]
[1749499001520,1.0922728,659.53,658.86,0.30355462]
[1749499001721,1.0922728,659.54,658.86,0.30355462]
[1749499001926,1.0922728,659.53,658.86,0.30355462]
[1749499002124,1.0922728,659.54,658.86,0.30355462]
[1749499002325,1.0922728,659.53,658.86,0.30355462]
[1749499002527,1.0922728,659.54,658.86,0.30355462]
[1749499006225,1.0922728,659.53,658.86,0.30355462]
[1749499006427,1.0922728,659.54,658.86,0.30355462]
[1749499006627,1.0922728,659.53,658.86,0.30355462]
[1749499006830,1.0922728,659.54,658.86,0.30355462]
[1749499007030,1.0922728,659.53,658.86,0.30355462]
[1749499007227,1.0922728,659.54,658.86,0.30355462]
[1749499007428,1.0922728,659.53,658.86,0.30355462]
[1749499007629,1.0922728,659.54,658.86,0.30355462]
[1749499007829,1.0922728,659.53,658.86,0.30355462]
[1749499008132,1.0922728,659.54,658.86,0.30355462]
[1749499008432,1.0922728,659.53,658.86,0.30355462]
[1749499008630,1.0922728,659.54,658.86,0.30355462]
[1749499008832,1.0922728,659.53,658.86,0.30355462]
[1749499009032,1.0922728,659.54,658.86,0.30355462]
[1749499009234,1.0922728,659.53,658.86,0.30355462]
[1749499009435,1.0922728,659.54,658.86,0.30355462]
[1749499009730,1.0922728,659.53,658.86,0.30355462]
[1749499009929,1.0922728,659.54,658.86,0.30355462]
[1749499012029,0.26395831,659.55,658.86,0.30355462]
[1749499013632,1.0922728,659.63,658.86,0.30355462]
[1749499013931,1.35619808,659.62,658.86,0.30355462]
[1749499014233,1.0922728,659.61,658.86,0.30355462]
[1749499016031,0.26392528,659.62,658.86,0.30355462]
[1749499066572,1.09152736,659.61,658.86,0.30355462]
[1749499066776,1.09152736,659.6,658.86,0.30355462]
[1749499066974,1.09152736,659.59,658.86,0.30355462]
[1749499067173,1.09152736,659.58,658.86,0.30355462]
[1749499067377,1.09152736,659.61,658.86,0.30355462]
[1749499067574,1.09152736,659.6,658.86,0.30355462]
[1749499067774,1.09152736,659.59,658.86,0.30355462]
[1749499067977,1.09152736,659.58,658.86,0.30355462]
[1749499068275,1.09152736,659.61,658.86,0.30355462]
[1749499068476,1.09152736,659.6,658.86,0.30355462]
[1749499068674,1.09152736,659.59,658.86,0.30355462]
[1749499068879,1.09152736,659.58,658.86,0.30355462]
[1749499069074,1.09152736,659.57,658.86,0.30355462]
[1749499069275,1.09152736,659.56,658.86,0.30355462]
[1749499069474,1.09152736,659.61,658.86,0.30355462]
[1749499069774,1.09152736,659.6,658.86,0.30355462]
[1749499069973,1.09152736,659.59,658.86,0.30355462]
[1749499070277,1.09152736,659.58,658.86,0.30355462]
[1749499070575,1.09152736,659.57,658.86,0.30355462]
[1749499070774,1.09152736,659.56,658.86,0.30355462]
[1749499070976,1.09152736,659.55,658.86,0.30355462]
[1749499071176,1.09209759,659.61,658.86,0.30355462]
[1749499071376,1.09209759,659.6,658.86,0.30355462]
[1749499071581,1.09209759,659.59,658.86,0.30355462]
[1749499071878,1.09209759,659.58,658.86,0.30355462]
[1749499072077,1.09209759,659.57,658.86,0.30355462]
[1749499072282,1.09209759,659.56,658.86,0.30355462]
[1749499072479,1.09209759,659.55,658.86,0.30355462]
[1749499072682,1.09209759,659.54,658.86,0.30355462]
[1749499072978,0.26392528,659.62,658.86,0.30355462]
[1749499073180,1.09241106,659.61,658.86,0.30355462]
[1749499073380,1.09241106,659.6,658.86,0.30355462]
[1749499073583,1.09241106,659.59,658.86,0.30355462]
[1749499073783,1.09241106,659.58,658.86,0.30355462]
[1749499073980,0.26392528,659.62,658.86,0.30355462]
[1749499073981,1.09241106,659.57,658.86,0.30355462]
[1749499074179,1.09241106,659.56,658.86,0.30355462]
[1749499074380,1.09241106,659.55,658.86,0.30355462]
[1749499074584,1.09241106,659.54,658.86,0.30355462]
[1749499074780,0.26392528,659.62,658.86,0.30355462]
[1749499074981,1.0923704,659.61,658.86,0.30355462]
[1749499075181,1.0923704,659.6,658.86,0.30355462]
[1749499075484,1.0923704,659.59,658.86,0.30355462]
[1749499075682,1.0923704,659.58,658.86,0.30355462]
[1749499075886,1.0923704,659.57,658.86,0.30355462]
[1749499076082,1.0923704,659.56,658.86,0.30355462]
[1749499076282,1.0923704,659.55,658.86,0.30355462]
[1749499076486,1.09236135,659.61,658.86,0.30355462]
[1749499076683,1.09236135,659.6,658.86,0.30355462]
[1749499076882,0.26392528,659.62,658.86,0.30355462]
[1749499076883,1.09236135,659.59,658.86,0.30355462]
[1749499077188,1.09236135,659.58,658.86,0.30355462]
[1749499077385,1.09236135,659.57,658.86,0.30355462]
[1749499077587,1.09236135,659.56,658.86,0.30355462]
[1749499077792,1.09236135,659.55,658.86,0.30355462]
[1749499077987,0.26392528,659.62,658.86,0.30355462]
[1749499078182,1.09235058,659.61,658.86,0.30355462]
[1749499078386,1.09235058,659.6,658.86,0.30355462]
[1749499078583,1.09235058,659.59,658.86,0.30355462]
[1749499078888,1.09235058,659.58,658.86,0.30355462]
[1749499079086,1.09235058,659.57,658.86,0.30355462]
[1749499079285,1.09235058,659.56,658.86,0.30355462]
[1749499079487,1.09235058,659.55,658.86,0.30355462]
[1749499079683,1.09235058,659.61,658.86,0.30355462]
[1749499079886,1.09235058,659.6,658.86,0.30355462]
[1749499080088,1.09235058,659.59,658.86,0.30355462]
[1749499080384,1.09235058,659.58,658.86,0.30355462]
[1749499080588,1.09235058,659.57,658.86,0.30355462]
[1749499080784,1.09235058,659.56,658.86,0.30355462]
[1749499080988,1.09235058,659.55,658.86,0.30355462]
[1749499081188,0.26392528,659.62,658.86,0.30355462]
[1749499081388,1.09179457,659.61,658.86,0.30355462]
[1749499081585,0.26392528,659.62,658.86,0.30355462]
[1749499081586,1.09179457,659.6,658.86,0.30355462]
[1749499081789,1.09179457,659.59,658.86,0.30355462]
[1749499081985,1.09179457,659.58,658.86,0.30355462]
[1749499082190,1.09179457,659.57,658.86,0.30355462]
[1749499082383,1.09179457,659.56,658.86,0.30355462]
[1749499082587,1.09179457,659.55,658.86,0.30355462]
[1749499082787,0.26392528,659.62,658.86,0.30355462]
[1749499082989,1.09176749,659.61,658.86,0.30355462]
[1749499083288,1.09176749,659.6,658.86,0.30355462]
[1749499083490,1.09176749,659.59,658.86,0.30355462]
[1749499083691,1.09176749,659.58,658.86,0.30355462]
[1749499083889,1.09176749,659.57,658.86,0.30355462]
[1749499084086,1.09176749,659.56,658.86,0.30355462]
[1749499084389,1.09176749,659.55,658.86,0.30355462]
[1749499084587,1.09176749,659.54,658.86,0.30355462]
[1749499084787,1.09176749,659.53,658.86,0.30355462]
[1749499084993,1.09176749,659.52,658.86,0.30355462]
[1749499085293,1.09153693,659.61,658.86,0.30355462]
[1749499085586,1.09153693,659.6,658.86,0.30355462]
[1749499085787,1.09153693,659.59,658.86,0.30355462]
[1749499086090,1.09153693,659.58,658.86,0.30355462]
[1749499086290,1.09153693,659.57,658.86,0.30355462]
[1749499086486,1.09153693,659.56,658.86,0.30355462]
[1749499086691,1.09153693,659.55,658.86,0.30355462]
[1749499086892,1.09153693,659.54,658.86,0.30355462]
[1749499087190,1.09153693,659.61,658.86,0.30355462]
[1749499087392,1.09153693,659.6,658.86,0.30355462]
[1749499087590,1.09153693,659.59,658.86,0.30355462]
[1749499087795,1.09153693,659.58,658.86,0.30355462]
[1749499088093,1.09153693,659.57,658.86,0.30355462]
[1749499088392,1.09153693,659.56,658.86,0.30355462]
[1749499088590,1.09153693,659.61,658.86,0.30355462]
[1749499088789,1.09153693,659.6,658.86,0.30355462]
[1749499088991,1.09153693,659.59,658.86,0.30355462]
[1749499089291,1.09153693,659.58,658.86,0.30355462]
[1749499089589,1.09153693,659.57,658.86,0.30355462]
[1749499089791,1.09153693,659.56,658.86,0.30355462]
[1749499089991,1.09153693,659.61,658.86,0.30355462]
[1749499090187,1.09153693,659.6,658.86,0.30355462]
[1749499090388,1.09153693,659.59,658.86,0.30355462]
[1749499090593,1.09153693,659.58,658.86,0.30355462]
[1749499090793,1.09153693,659.57,658.86,0.30355462]
[1749499091089,1.09153693,659.61,658.86,0.30355462]
[1749499091289,1.09153693,659.6,658.86,0.30355462]
[1749499091594,1.09153693,659.59,658.86,0.30355462]
[1749499091789,1.09153693,659.58,658.86,0.30355462]
[1749499091988,1.09153693,659.57,658.86,0.30355462]
[1749499092194,1.09153693,659.56,658.86,0.30355462]
[1749499092489,1.09153693,659.61,658.86,0.30355462]
[1749499092691,1.09153693,659.6,658.86,0.30355462]
[1749499092890,1.09153693,659.59,658.86,0.30355462]
[1749499093190,1.09153693,659.58,658.86,0.30355462]
[1749499093389,1.09153693,659.57,658.86,0.30355462]
[1749499093591,1.09153693,659.61,658.86,0.30355462]
[1749499093891,1.09153693,659.6,658.86,0.30355462]
[1749499094095,1.09153693,659.59,658.86,0.30355462]
[1749499094292,1.09153693,659.58,658.86,0.30355462]
[1749499094491,1.09153693,659.57,658.86,0.30355462]
[1749499094694,1.09153693,659.61,658.86,0.30355462]
[1749499094895,1.09153693,659.6,658.86,0.30355462]
[1749499095090,1.09153693,659.59,658.86,0.30355462]
[1749499095290,1.09153693,659.58,658.86,0.30355462]
[1749499095491,1.09153693,659.57,658.86,0.30355462]
[1749499095692,1.09153693,659.61,658.86,0.30355462]
[1749499095992,1.09153693,659.6,658.86,0.30355462]
[1749499096198,1.09153693,659.59,658.86,0.30355462]
[1749499096397,1.09153693,659.58,658.86,0.30355462]
[1749499096594,1.09153693,659.61,658.86,0.30355462]
[1749499097096,0.26392528,659.62,658.86,0.30355462]
[1749499099398,1.09153693,659.61,658.86,0.30355462]
[1749499099592,0.26392528,659.62,658.86,0.30355462]
[1749499100501,1.09153693,659.61,658.86,0.30355462]
[1749499101301,0.26392528,659.62,658.86,0.30355462]
[1749499103001,1.09153693,659.61,658.86,0.30355462]
[1749499103802,0.26392528,659.62,658.86,0.30355462]
[1749499104304,1.09153693,659.61,658.86,0.30355462]
[1749499106600,1.09153693,659.6,658.86,0.30355462]
[1749499106799,1.09153693,659.59,658.86,0.30355462]
[1749499107001,1.09153693,659.58,658.86,0.30355462]
[1749499107203,1.09153693,659.57,658.86,0.30355462]
[1749499107401,1.09153693,659.61,658.86,0.30355462]
[1749499107704,1.09153693,659.6,658.86,0.30355462]
[1749499107901,1.09153693,659.59,658.86,0.30355462]
[1749499108204,0.26392528,659.62,658.86,0.30355462]
[1749499108205,1.09153693,659.58,658.86,0.30355462]
[1749499108404,1.09153693,659.57,658.86,0.30355462]
[1749499108603,1.09153693,659.56,658.86,0.30355462]
[1749499108802,1.09153693,659.55,658.86,0.30355462]
[1749499109002,1.09153693,659.61,658.86,0.30355462]
[1749499109204,1.09153693,659.6,658.86,0.30355462]
[1749499109502,1.09153693,659.59,658.86,0.30355462]
[1749499109806,1.09153693,659.58,658.86,0.30355462]
[1749499110003,1.09153693,659.57,658.86,0.30355462]
[1749499110203,1.09153693,659.56,658.86,0.30355462]
[1749499110409,1.09153693,659.61,658.86,0.30355462]
[1749499110608,1.09153693,659.6,658.86,0.30355462]
[1749499110808,1.09153693,659.59,658.86,0.30355462]
[1749499111004,1.09153693,659.58,658.86,0.30355462]
[1749499111209,1.09153693,659.61,658.86,0.30355462]
[1749499111404,0.26392528,659.62,658.86,0.30355462]
[1749499111611,1.09708696,659.61,658.86,0.30355462]
[1749499111806,0.26392528,659.62,658.86,0.30355462]
[1749499113212,1.09711153,659.79,658.86,0.30355462]
[1749499113508,0.26388526,659.74,658.86,0.30355462]
[1749499113711,1.09711153,659.73,658.86,0.30355462]
[1749499113911,1.09659131,659.72,658.86,0.30355462]
[1749499114107,1.09659131,659.71,658.86,0.30355462]
[1749499114308,1.09659131,659.7,658.86,0.30355462]
[1749499114510,1.09659131,659.69,658.86,0.30355462]
[1749499114710,1.09659131,659.68,658.86,0.30355462]
[1749499114912,1.09659131,659.73,658.86,0.30355462]
[1749499115113,1.09659131,659.72,658.86,0.30355462]
[1749499115310,1.09659131,659.71,658.86,0.30355462]
[1749499115611,1.09659131,659.7,658.86,0.30355462]
[1749499115814,1.09659131,659.69,658.86,0.30355462]
[1749499116012,0.26388526,659.74,658.86,0.30355462]
[1749499116013,1.09659131,659.73,658.86,0.30355462]
[1749499116213,1.09659131,659.72,658.86,0.30355462]
[1749499116511,1.09659131,659.71,658.86,0.30355462]
[1749499116815,1.09659131,659.7,658.86,0.30355462]
[1749499117020,1.09659131,659.69,658.86,0.30355462]
[1749499117214,1.09659131,659.73,658.86,0.30355462]
[1749499117420,1.09659131,659.72,658.86,0.30355462]
[1749499117619,1.09659131,659.71,658.86,0.30355462]
[1749499117919,1.09659131,659.7,658.86,0.30355462]
[1749499118115,1.09659131,659.73,658.86,0.30355462]
[1749499118319,1.09659131,659.72,658.86,0.30355462]
[1749499118515,1.09659131,659.71,658.86,0.30355462]
[1749499118815,1.09659131,659.7,658.86,0.30355462]
[1749499119020,1.09659131,659.73,658.86,0.30355462]
[1749499119220,1.09659131,659.72,658.86,0.30355462]
[1749499119417,1.09659131,659.71,658.86,0.30355462]
[1749499119718,1.09659131,659.73,658.86,0.30355462]
[1749499119918,0.26388526,659.74,658.86,0.30355462]
[1749499119919,1.09659131,659.72,658.86,0.30355462]
[1749499120120,1.09659131,659.71,658.86,0.30355462]
[1749499120317,1.09659131,659.73,658.86,0.30355462]
[1749499120617,1.09659131,659.72,658.86,0.30355462]
[1749499120818,1.09659131,659.71,658.86,0.30355462]
[1749499121016,0.26388526,659.74,658.86,0.30355462]
[1749499150239,3.90742269,660.03,658.86,0.30355462]
[1749499150443,0.26385324,659.81,658.86,0.30355462]
[1749499166865,1.36259765,659.81,658.86,0.30355462]
[1749499167163,0.26385324,659.81,658.86,0.30355462]
[1749499167565,1.09874441,659.8,658.86,0.30355462]
[1749499168569,1.09874441,659.79,658.86,0.30355462]
[1749499168868,1.09874441,659.8,658.86,0.30355462]
[1749499169065,1.09874441,659.79,658.86,0.30355462]
[1749499169267,1.09874441,659.8,658.86,0.30355462]
[1749499169568,1.09874441,659.79,658.86,0.30355462]
[1749499169769,1.09874441,659.78,658.86,0.30355462]
[1749499169967,1.09874441,659.8,658.86,0.30355462]
[1749499170165,1.09874441,659.79,658.86,0.30355462]
[1749499170370,1.09874441,659.78,658.86,0.30355462]
[1749499170568,1.09874441,659.77,658.86,0.30355462]
[1749499170768,1.09874441,659.8,658.86,0.30355462]
[1749499170970,1.09874441,659.79,658.86,0.30355462]
[1749499171272,1.09874441,659.78,658.86,0.30355462]
[1749499171568,1.09874441,659.77,658.86,0.30355462]
[1749499171768,1.09874441,659.76,658.86,0.30355462]
[1749499172068,1.09874441,659.8,658.86,0.30355462]
[1749499172268,1.09874441,659.79,658.86,0.30355462]
[1749499172567,1.09874441,659.78,658.86,0.30355462]
[1749499172771,1.09874441,659.77,658.86,0.30355462]
[1749499173072,1.09874441,659.76,658.86,0.30355462]
[1749499173269,1.09874441,659.8,658.86,0.30355462]
[1749499173468,1.09874441,659.79,658.86,0.30355462]
[1749499173671,1.09874441,659.78,658.86,0.30355462]
[1749499173869,1.09874441,659.77,658.86,0.30355462]
[1749499174070,1.09874441,659.8,658.86,0.30355462]
[1749499174270,1.09874441,659.79,658.86,0.30355462]
[1749499174471,1.09874441,659.78,658.86,0.30355462]
[1749499174674,1.09874441,659.8,658.86,0.30355462]
[1749499174870,1.09874441,659.79,658.86,0.30355462]
[1749499175070,1.09823012,659.8,658.86,0.30355462]
[1749499175274,1.09823012,659.79,658.86,0.30355462]
[1749499175482,1.09823012,659.8,658.86,0.30355462]
[1749499175669,0.26385324,659.81,658.86,0.30355462]
[1749499175873,1.09823012,659.8,658.86,0.30355462]
[1749499176472,1.09823012,659.79,658.86,0.30355462]
[1749499176669,1.09823012,659.8,658.86,0.30355462]
[1749499176871,1.09823012,659.79,658.86,0.30355462]
[1749499177069,1.09823012,659.8,658.86,0.30355462]
[1749499178172,0.26385524,659.9,658.86,0.30355462]
[1749499178372,1.09823012,659.89,658.86,0.30355462]
[1749499178574,1.09823012,659.88,658.86,0.30355462]
[1749499178775,1.09823012,659.87,658.86,0.30355462]
[1749499178974,1.09823012,659.86,658.86,0.30355462]
[1749499179176,1.09823012,659.85,658.95,3.78229512]
[1749499179370,1.09823012,659.84,658.96,0.30350855]
[1749499179671,1.09823012,659.89,658.98,3.78229512]
[1749499179875,1.09823012,659.88,658.99,0.30349474]
[1749499180076,1.09823012,659.87,658.99,0.30349474]
[1749499180270,1.09823012,659.89,658.99,0.30349474]
[1749499180473,1.09823012,659.88,658.99,0.30349474]
[1749499180773,1.09823012,659.87,658.99,0.30349474]
[1749499180971,1.09823012,659.86,658.99,0.30349474]
[1749499181172,1.09823012,659.89,658.99,0.30349474]
[1749499181376,1.09823012,659.88,658.99,0.30349474]
[1749499181571,1.09823012,659.87,658.99,0.30349474]
[1749499181774,1.09823012,659.86,658.99,0.30349474]
[1749499181977,1.09823012,659.89,658.99,0.30349474]
[1749499182176,0.26385524,659.9,658.99,0.30349474]
[1749499182177,1.09823012,659.88,658.99,0.30349474]
[1749499182376,1.09823012,659.87,658.99,0.30349474]
[1749499182576,1.09823012,659.89,658.99,0.30349474]
[1749499182779,1.09823012,659.88,658.99,0.30349474]
[1749499182977,1.09823012,659.87,658.99,0.30349474]
[1749499183276,1.09823012,659.89,658.99,0.30349474]
[1749499183477,1.09823012,659.88,658.99,0.30349474]
[1749499183679,1.09823012,659.87,658.99,0.30349474]
[1749499183877,1.09823012,659.89,658.99,0.30349474]